bitfinex-derivatives/quotes_ETHF0:USTF0_20251012
["timestamp","ask_amount","ask_price","bid_price","bid_amount"]
[1760272182058,0.2238,3844.5,3843.8,3.2078]
[1760272182262,41.3594,3844.4,3844.3,0.46808]
[1760272182566,47.75515432,3844.4,3844.3,0.46808]
[1760272182962,47.7579499,3844.4,3844.3,0.46808]
[1760272183461,47.1985499,3844.4,3844.3,0.46808]
[1760272183666,0.2238,3845.5,3845.3,0.46795]
[1760272184067,46.93132433,3845.4,3845.3,0.46795]
[1760272184469,46.93132433,3845.4,3844.7,3.2078]
[1760272184470,0.2182,3845.0,3844.7,3.2078]
[1760272184657,0.22107423,3845.0,3844.7,0.00316668]
[1760272184862,11.13132433,3844.9,3844.1,0.4681]
[1760272185063,0.2182,3844.0,3843.6,3.2078]
[1760272185266,0.2182,3844.0,3843.8,0.46813]
[1760272185466,6.20031041,3843.9,3843.8,0.46813]
[1760272185771,6.74241041,3843.9,3843.8,0.46813]
[1760272185966,6.74241041,3843.9,3843.8,0.47075691]
[1760272186568,47.54241041,3843.9,3843.8,0.47075691]
[1760272186768,47.54241041,3843.9,3843.8,0.00262691]
[1760272187966,0.2182,3843.5,3842.6,3.2078]
[1760272188362,0.2182,3843.0,3842.3,9.557]
[1760272188567,0.5421,3842.9,3842.7,0.46827]
[1760272188873,0.2182,3842.5,3842.2,3.2078]
[1760272189070,0.5421,3842.4,3842.3,0.46832]
[1760272189367,0.5421,3842.3,3842.2,0.00223207]
[1760272189569,0.00227589,3842.3,3842.2,0.00223207]
[1760272189760,40.80227589,3842.3,3842.2,0.00223207]
[1760272189964,40.80227589,3842.3,3842.2,3.21003207]
[1760272190566,41.34437589,3842.3,3842.2,3.21003207]
[1760272190771,44.30766975,3842.3,3842.2,3.21003207]
[1760272191072,43.76556975,3842.3,3842.2,3.21003207]
[1760272192478,0.4682,3843.3,3842.2,3.21003207]
[1760272192479,0.5421,3843.1,3843.0,0.46824]
[1760272192665,0.5421,3842.9,3842.4,3.2078]
[1760272192868,2.73973456,3842.6,3842.5,0.4683]
[1760272193064,40.8,3842.6,3842.5,0.4683]
[1760272193467,40.80278158,3842.6,3842.5,0.4683]
[1760272193871,0.00278158,3842.6,3842.5,5.4683]
[1760272194175,0.00278158,3842.6,3842.5,0.4683]
[1760272194377,40.80278158,3842.6,3842.5,0.4683]
[1760272196172,41.34488158,3842.6,3842.5,0.4683]
[1760272196478,44.19091319,3842.6,3842.5,0.4683]
[1760272197076,40.80278158,3842.6,3842.5,0.4683]
[1760272197281,0.00278158,3842.6,3842.5,0.4683]
[1760272198780,0.54488158,3842.6,3842.5,0.4683]
[1760272199287,6.84066234,3842.6,3842.5,0.4683]
[1760272199791,47.64066234,3842.6,3842.5,0.4683]
[1760272200787,52.64066234,3842.6,3842.5,0.4683]
[1760272203690,53.40996234,3842.6,3842.5,0.4683]
[1760272205000,48.40996234,3842.6,3842.5,0.4683]
[1760272205199,40.8,3842.6,3842.5,4.8594]
[1760272205396,0.2182,3843.0,3842.9,1.19275]
[1760272205591,0.9673,3843.5,3843.4,0.46819]
[1760272205799,41.7673,3843.5,3843.4,0.46819]
[1760272206092,48.02498565,3843.5,3843.4,0.46819]
[1760272206399,48.02828543,3843.5,3843.4,0.46819]
[1760272207404,48.61578543,3843.5,3843.4,0.46819]
[1760272210811,45.1763546,3843.5,3843.4,1.19269]
[1760272211102,48.22594765,3843.5,3843.4,1.19269]
[1760272211403,47.05434765,3843.5,3843.4,1.65149]
[1760272211598,47.99944765,3843.5,3843.4,1.19269]
[1760272211806,48.22594765,3843.5,3843.4,1.19269]
[1760272213106,47.05434765,3843.5,3843.4,1.65149]
[1760272213604,47.05434765,3843.5,3843.4,3.49149671]
[1760272214103,47.05434765,3843.5,3843.4,1.65149]
[1760272215507,48.22594765,3843.5,3843.4,1.19269]
[1760272215806,48.61744765,3843.5,3843.4,1.19269]
[1760272216102,1.3366,3843.4,3843.1,1.84148588]
[1760272216402,1.3366,3843.4,3843.3,0.4682]
[1760272216806,7.65472741,3843.4,3843.3,0.834]
[1760272217009,7.65472741,3843.4,3843.3,1.1927]
[1760272218106,7.26322741,3843.4,3843.3,1.1927]
[1760272219108,6.90562741,3843.4,3843.3,1.1927]
[1760272219409,4.036178,3843.4,3843.3,1.6515]
[1760272220006,3.448678,3843.4,3843.3,1.6515]
[1760272221007,2.7469651,3843.4,3843.3,6.6515]
[1760272221308,0.6125,3844.4,3844.3,1.19258]
[1760272221513,0.6125,3844.4,3844.3,0.83388]
[1760272221701,3.35960598,3844.4,3844.3,0.83388]
[1760272222107,44.15960598,3844.4,3844.3,0.83388]
[1760272222412,44.16183493,3844.4,3844.3,0.83388]
[1760272223314,44.16183493,3844.4,3843.9,1.84073871]
[1760272223315,51.37205447,3844.4,3843.9,1.84073871]
[1760272223509,1.3366,3843.8,3843.7,0.46815]
[1760272223810,1.3366,3843.6,3843.5,0.46817]
[1760272224311,48.37154002,3843.6,3843.5,0.46817]
[1760272225311,48.37154002,3843.6,3843.5,0.83397]
[1760272226213,48.37154002,3843.6,3843.5,0.46817]
[1760272228015,0.5875,3843.3,3843.2,0.4682]
[1760272228204,1.5631,3843.0,3842.9,0.46825]
[1760272228510,1.3366,3842.8,3842.7,0.46827]
[1760272229013,48.46082874,3842.8,3842.7,0.83407]
[1760272229210,48.46082874,3842.8,3842.7,0.46827]
[1760272229611,48.46082874,3842.8,3842.7,0.83407]
[1760272233317,47.12422874,3842.8,3842.7,1.76727]
[1760272233519,48.42632874,3842.8,3842.7,1.76727]
[1760272234117,47.12422874,3842.8,3842.7,1.76727]
[1760272234619,48.06772874,3842.8,3842.7,1.76727]
[1760272235612,0.9435,3842.7,3842.5,1.84162353]
[1760272235807,0.5728,3842.6,3842.5,0.4683]
[1760272236012,7.64698128,3842.6,3842.5,0.4683]
[1760272236412,1.41182,3842.3,3842.2,1.8438556]
[1760272236608,1.77042,3842.3,3842.2,0.47056207]
[1760272236910,48.7776663,3842.3,3842.2,0.47056207]
[1760272237414,48.3093463,3842.3,3842.2,0.47056207]
[1760272237629,48.3093463,3842.3,3842.2,1.76326207]
[1760272238208,48.3093463,3842.3,3842.2,1.18876207]
[1760272240219,48.3093463,3842.3,3842.2,0.82976207]
[1760272242720,48.3093463,3842.3,3842.2,0.47056207]
[1760272242918,47.7365463,3842.3,3841.7,1.63248057]
[1760272243126,0.46855,3840.4,3840.3,0.1524488]
[1760272243422,3.2078,3840.4,3840.1,0.5612]
[1760272243717,9.60396717,3840.4,3840.3,2.86212339]
[1760272244112,50.40677451,3840.4,3840.3,2.86541789]
[1760272244917,47.19897451,3840.4,3840.3,2.86541789]
[1760272246325,47.19897451,3840.4,3840.3,3.61511789]
[1760272251623,47.19897451,3840.4,3840.3,4.08367789]
[1760272261029,47.19897451,3840.4,3840.3,1.3991545]
[1760272261532,47.66752451,3840.4,3840.3,0.9305945]
[1760272261721,52.66752451,3840.4,3840.3,0.0032945]
[1760272262626,52.66752451,3840.4,3840.3,0.8379645]
[1760272262627,47.19897451,3840.4,3840.3,0.8379645]
[1760272262827,47.19897451,3840.4,3840.3,1.2492645]
[1760272263838,47.19897451,3840.4,3840.3,1.8718645]
[1760272264536,47.19897451,3840.4,3840.3,1.4605645]
[1760272264928,47.19897451,3840.4,3840.3,1.0944645]
[1760272265127,47.19897451,3840.4,3840.3,1.9071645]
[1760272266224,47.19897451,3840.4,3840.3,4.20808789]
[1760272266624,3.2078,3841.0,3840.9,0.4014]
[1760272266837,3.2078,3841.0,3840.9,1.90379]
[1760272267239,44.0078,3841.0,3840.9,1.90379]
[1760272267427,47.40667868,3841.0,3840.9,1.90379]
[1760272267639,47.40872365,3841.0,3840.9,1.90379]
[1760272270334,4.54160902,3842.0,3841.9,1.90367]
[1760272270541,4.75904276,3842.0,3841.9,1.90367]
[1760272270839,4.75904276,3842.0,3841.1,4.37896]
[1760272270840,0.4014,3841.7,3841.6,0.6226]
[1760272271037,2.17314878,3841.7,3841.4,0.46843]
[1760272271237,1.4333,3841.5,3841.4,0.46843]
[1760272271435,4.6411,3841.5,3841.4,0.46843]
[1760272271639,11.04113,3841.5,3841.4,0.46843]
[1760272271834,51.84410214,3841.5,3841.4,0.46843]
[1760272272637,51.22220214,3841.5,3841.4,1.90373]
[1760272273034,50.41080214,3841.5,3841.4,1.90373]
[1760272273238,44.23786836,3841.5,3841.4,1.90373]
[1760272273842,40.80297214,3841.5,3841.4,1.90373]
[1760272274338,44.13080357,3841.5,3841.4,1.90373]
[1760272274738,43.72940357,3841.5,3841.4,1.90373]
[1760272275738,40.80297214,3841.5,3841.4,1.90373]
[1760272279249,0.00297214,3841.5,3841.4,6.90373]
[1760272279545,3.2078,3841.9,3841.8,1.90368]
[1760272279742,44.0078,3841.9,3841.8,1.90368]
[1760272279943,3.2078,3842.4,3842.3,1.4353]
[1760272280146,3.2078,3842.4,3842.3,1.90362]
[1760272280344,49.76330409,3842.4,3842.3,1.90362]
[1760272280539,8.96330409,3842.4,3842.3,1.90362]
[1760272280939,5.65020307,3842.4,3842.3,1.90362]
[1760272281140,2.44240307,3842.4,3842.3,1.90362]
[1760272281444,5.14e-06,3842.4,3842.3,1.90362]
[1760272281649,40.8,3843.2,3843.1,1.90353]
[1760272282145,47.1459633,3843.2,3843.1,1.90353]
[1760272282347,44.1428131,3843.2,3843.1,1.90353]
[1760272282842,0.00255104,3843.2,3843.1,6.90583042]
[1760272283034,3.2078,3843.9,3843.8,1.90344]
[1760272283442,50.21232242,3843.9,3843.8,1.90344]
[1760272284047,43.66068257,3843.9,3843.8,1.90344]
[1760272284435,40.80234565,3843.9,3843.8,1.90344]
[1760272284651,43.70481988,3843.9,3843.8,1.90344]
[1760272285351,40.80234565,3843.9,3843.8,1.90344]
[1760272286051,0.00234565,3843.9,3843.8,1.90344]
[1760272287653,2.78260535,3843.9,3843.8,1.90344]
[1760272287950,0.4014,3843.2,3843.1,1.90583042]
[1760272288246,1.0233,3843.6,3843.5,0.4014]
[1760272288451,1.4333,3843.6,3843.5,0.4014]
[1760272288646,7.67483372,3843.6,3843.5,0.4014]
[1760272288847,48.47483372,3843.6,3843.5,0.4014]
[1760272289044,47.44293372,3843.6,3843.5,1.6856]
[1760272289349,47.04153372,3843.6,3843.5,1.6856]
[1760272289549,47.04153372,3843.6,3843.5,2.15378]
[1760272289750,48.47483372,3843.6,3843.5,1.4353]
[1760272289952,48.47483372,3843.6,3843.5,1.90348]
[1760272291047,47.85293372,3843.6,3843.5,1.90348]
[1760272291253,47.04153372,3843.6,3843.5,2.15378]
[1760272291550,48.47483372,3843.6,3843.5,1.4353]
[1760272291846,48.94300372,3843.6,3843.5,0.4014]
[1760272292946,48.94300372,3843.6,3843.5,0.86958]
[1760272293151,48.94300372,3843.6,3843.5,0.4014]
[1760272293349,1.92221,3843.2,3843.1,0.87583042]
[1760272293643,5.13001,3843.2,3843.1,0.87583042]
[1760272293850,11.39464088,3843.2,3843.1,0.87583042]
[1760272294353,10.92643088,3843.2,3843.1,0.87583042]
[1760272294652,11.39464088,3843.2,3843.1,0.87583042]
[1760272294847,9.89333088,3843.2,3843.1,1.91833042]
[1760272296148,6.26463088,3843.2,3843.1,1.91833042]
[1760272296455,42.254,3843.6,3843.5,1.91598]
[1760272296747,41.2209,3843.6,3843.5,1.91598]
[1760272296953,47.51626224,3843.6,3843.5,2.17208]
[1760272298451,47.09536224,3843.6,3843.5,2.17208]
[1760272298756,47.09536224,3843.6,3843.1,1.17287042]
[1760272298757,1.454,3843.5,3843.4,1.49999]
[1760272298956,1.454,3843.5,3843.4,1.91599]
[1760272299160,6.9912549,3843.5,3843.4,1.91599]
[1760272300056,7.5966549,3843.5,3843.4,1.91599]
[1760272300959,7.8421549,3843.5,3843.4,0.46819]
[1760272301148,8.3103349,3843.5,3843.4,0.46819]
[1760272301345,3.42220034,3843.5,3843.4,6.91599]
[1760272301555,40.8,3843.6,3843.5,2.17208]
[1760272302448,41.1969,3843.6,3843.5,2.17208]
[1760272302645,44.18949388,3843.6,3843.5,2.17208]
[1760272303158,43.79259388,3843.6,3843.5,2.17208]
[1760272303354,0.00234565,3843.9,3843.8,1.29734]
[1760272303560,0.00234565,3843.9,3843.8,1.94204]
[1760272303755,3.33631836,3843.9,3843.8,1.94204]
[1760272303958,44.13631836,3843.9,3843.8,1.94204]
[1760272311660,3.2078,3844.6,3843.8,1.94204]
[1760272311661,3.2078,3844.6,3844.5,2.17976]
[1760272312059,44.0078,3844.6,3844.5,2.17976]
[1760272312669,44.00993069,3844.6,3844.5,2.17976]
[1760272312871,0.2455,3845.5,3844.5,2.17976]
[1760272312872,3.2078,3845.1,3845.0,2.17969]
[1760272313066,3.2078,3845.5,3845.4,1.4739]
[1760272313267,6.12688397,3845.5,3845.4,1.94185]
[1760272313464,2.51617476,3845.9,3845.5,1.16984]
[1760272313773,3.2078,3846.4,3846.3,0.8292]
[1760272313969,44.00977844,3846.4,3846.3,1.94407551]
[1760272314163,50.13908662,3846.4,3846.3,1.94407551]
[1760272314565,46.93128662,3846.4,3846.3,1.94407551]
[1760272314966,44.20602833,3846.4,3846.3,1.94407551]
[1760272317076,57.22457974,3846.4,3846.3,0.00233551]
[1760272317378,57.22457974,3846.4,3846.3,1.47623551]
[1760272317379,55.72535974,3846.4,3846.3,1.47623551]
[1760272317765,56.32725974,3846.4,3846.3,1.47623551]
[1760272317968,56.75675974,3846.4,3846.3,1.47623551]
[1760272319270,50.32845974,3846.4,3846.3,1.47623551]
[1760272321582,50.72535974,3846.4,3846.3,1.47623551]
[1760272321783,50.32845974,3846.4,3846.3,1.47623551]
[1760272322182,50.32845974,3846.4,3846.3,1.94407551]
[1760272324286,0.87639,3845.9,3845.8,1.067]
[1760272324491,0.87639,3845.9,3845.4,0.4321]
[1760272324492,1.94683,3845.5,3845.4,0.4321]
[1760272324687,1.4789,3845.5,3845.4,1.53495]
[1760272324883,11.45628678,3845.5,3845.4,1.067]
[1760272325184,11.45628678,3845.5,3845.0,0.2378]
[1760272325185,1.0484,3845.1,3845.0,1.067]
[1760272325388,0.4085,3845.1,3845.0,1.49307653]
[1760272325588,6.58818935,3845.1,3845.0,1.75067653]
[1760272326390,9.79598935,3845.1,3845.0,1.75067653]
[1760272327289,9.38748935,3845.1,3845.0,1.75067653]
[1760272327494,10.86638935,3845.1,3845.0,1.49307653]
[1760272328484,6.17968935,3845.1,3845.0,1.75067653]
[1760272329587,6.17968935,3845.1,3845.0,2.21866653]
[1760272329789,2.73099275,3845.1,3845.0,2.21866653]
[1760272331284,7.65998731,3845.1,3845.0,1.96106653]
[1760272331485,4.92899456,3845.1,3845.0,1.96106653]
[1760272331681,7.70864087,3845.1,3845.0,1.96106653]
[1760272331885,7.06874087,3845.1,3845.0,2.21866653]
[1760272332686,6.63824087,3845.1,3845.0,2.21866653]
[1760272333091,6.22974087,3845.1,3845.0,2.21866653]
[1760272333392,4.25817844,3846.4,3846.3,1.95854]
[1760272333590,4.68867844,3846.4,3846.3,1.95854]
[1760272333785,0.839,3846.1,3845.9,0.6349]
[1760272333983,6.12816949,3846.3,3845.5,3.4654]
[1760272333984,1.4789,3845.6,3845.5,1.53493]
[1760272334194,4.6867,3845.6,3845.5,1.53493]
[1760272334382,10.81486949,3845.6,3845.5,1.53493]
[1760272335497,1.7225,3845.5,3845.4,0.46795]
[1760272335892,48.65606506,3845.5,3845.4,0.46795]
[1760272336590,48.41246506,3845.5,3845.4,1.53495]
[1760272336992,47.77256506,3845.5,3845.4,1.95865]
[1760272338297,46.93356506,3845.5,3845.4,1.95865]
[1760272338495,3.2078,3846.0,3845.9,1.10279]
[1760272338890,9.37585747,3846.0,3845.9,1.10279]
[1760272339596,50.17585747,3846.0,3845.9,1.10279]
[1760272341294,50.58435747,3846.0,3845.9,1.95859]
[1760272341499,51.65475747,3846.0,3845.9,1.95859]
[1760272342398,1.10779,3845.9,3845.7,0.46791]
[1760272342589,1.4789,3845.4,3845.0,0.25997653]
[1760272342794,0.2436,3845.0,3844.3,3.2078]
[1760272342995,0.6399,3844.4,3844.3,0.46808]
[1760272343292,6.80157945,3844.4,3844.3,0.46808]
[1760272343498,47.60157945,3844.4,3844.3,0.46808]
[1760272343804,47.60157945,3844.4,3844.3,0.47043869]
[1760272344802,40.8,3844.4,3844.3,6.10533869]
[1760272344995,1.17600902,3846.5,3845.4,1.10285]
[1760272344996,3.2078,3845.5,3845.4,1.10285]
[1760272345495,0.46797,3845.3,3844.5,2.06264]
[1760272345700,3.8477,3845.0,3844.9,0.46801]
[1760272345902,44.8913,3845.0,3844.9,0.46801]
[1760272346100,51.05886514,3845.0,3844.9,0.46801]
[1760272346507,51.05886514,3845.0,3844.9,1.10291]
[1760272346508,50.81526514,3845.0,3844.9,1.10291]
[1760272346698,50.17536514,3845.0,3844.9,1.10291]
[1760272347100,51.05886514,3845.0,3844.9,0.46801]
[1760272350896,50.81526514,3845.0,3844.9,1.10291]
[1760272353808,51.63826514,3845.0,3844.9,1.10291]
[1760272354104,2.80534148,3845.0,3844.9,6.90651]
[1760272354312,4.6471,3845.9,3845.8,0.8663]
[1760272354505,4.6471,3845.9,3845.8,1.5119]
[1760272354709,51.74318677,3845.9,3845.8,1.5119]
[1760272356114,51.74318677,3845.9,3845.8,0.8663]
[1760272358112,50.30388677,3845.9,3845.8,1.9171]
[1760272358506,51.74318677,3845.9,3845.8,1.9171]
[1760272358705,51.74318677,3845.9,3845.8,0.4679]
[1760272360017,51.74318677,3845.9,3845.8,0.8663]
[1760272360219,51.74318677,3845.9,3845.8,1.5119]
[1760272360414,51.74318677,3845.9,3845.8,0.8663]
[1760272361014,51.74318677,3845.9,3845.8,0.4679]
[1760272361316,1.4393,3845.3,3845.2,0.46797]
[1760272361511,5.11506,3845.3,3845.2,0.46797]
[1760272361717,5.11506,3845.3,3844.7,1.17008]
[1760272361718,0.4329,3844.8,3844.7,0.46803]
[1760272361911,42.2393,3844.8,3844.7,0.46803]
[1760272362113,48.43002106,3844.8,3844.7,0.46803]
[1760272362712,0.5919,3844.4,3844.3,0.00235869]
[1760272362917,4.6471,3844.4,3844.3,0.00235869]
[1760272363121,10.13529845,3844.4,3844.3,0.00235869]
[1760272364110,10.13529845,3844.4,3844.3,0.64795869]
[1760272364309,6.33559845,3844.4,3844.3,0.64795869]
[1760272368825,6.74249845,3844.4,3844.3,1.49435869]
[1760272369627,6.33559845,3844.4,3844.3,1.49435869]
[1760272370125,6.33559845,3844.4,3844.3,1.96243869]
[1760272372931,7.80859845,3844.4,3844.3,0.47043869]
[1760272373119,7.80859845,3844.4,3844.3,1.52153869]
[1760272373925,7.80859845,3844.4,3844.3,0.90173869]
[1760272374120,7.80859845,3844.4,3844.3,0.47043869]
[1760272374326,13.27666845,3844.4,3844.3,0.00235869]
[1760272374930,53.60859845,3844.4,3844.3,0.00235869]
[1760272375122,53.60859845,3844.4,3844.3,0.47043869]
[1760272378122,54.07666845,3844.4,3844.3,0.47043869]
[1760272378317,54.07666845,3844.4,3844.3,0.00235869]
[1760272378522,54.07666845,3844.4,3844.2,0.46809]
[1760272378523,1.473,3843.6,3843.5,0.46818]
[1760272379030,7.88922027,3843.6,3843.5,0.46818]
[1760272379228,48.68922027,3843.6,3843.5,0.46818]
[1760272379529,49.16022702,3843.6,3843.5,0.47031723]
[1760272379825,48.69205702,3843.6,3843.5,0.47031723]
[1760272380330,0.46824,3843.0,3842.7,3.2078]
[1760272380525,1.473,3842.5,3842.4,1.51941]
[1760272380728,1.473,3842.5,3842.4,0.46831]
[1760272381026,7.7323322,3842.5,3842.4,1.51941]
[1760272381425,7.7323322,3842.5,3842.4,1.52276009]
[1760272381625,7.9751322,3842.5,3842.4,0.47166009]
[1760272381826,48.7751322,3842.5,3842.4,0.47166009]
[1760272383231,47.8956322,3842.5,3842.4,1.84326009]
[1760272383631,47.0593322,3842.5,3842.4,1.84326009]
[1760272384533,6.2593322,3842.5,3842.4,1.84326009]
[1760272385032,47.0593322,3842.5,3842.4,1.84326009]
[1760272385330,40.8,3842.5,3842.4,6.84326009]
[1760272385531,3.2078,3843.3,3842.4,6.84326009]
[1760272385532,3.6085,3843.3,3843.2,1.83981]
[1760272385829,6.97058281,3843.3,3843.2,1.83981]
[1760272386132,48.37238281,3843.3,3843.2,1.83981]
[1760272387637,43.73778281,3843.3,3843.2,1.83981]
[1760272389030,45.16458281,3843.3,3843.2,1.83981]
[1760272389626,48.47663456,3843.3,3843.2,0.46821]
[1760272390736,51.68443456,3843.3,3843.2,0.46821]
[1760272391443,47.87483456,3843.3,3843.2,1.83981]
[1760272391839,47.04983456,3843.3,3843.2,1.83981]
[1760272392541,47.45053456,3843.3,3843.2,1.83981]
[1760272394436,48.47663456,3843.3,3843.2,1.44571]
[1760272394642,48.47663456,3843.3,3843.2,0.46821]
[1760272397543,1.4268,3842.6,3842.4,1.17413009]
[1760272397846,4.14495497,3842.5,3842.4,0.47166009]
[1760272398046,7.45861738,3842.5,3842.4,0.47166009]
[1760272398351,1.6789,3842.5,3842.4,0.47166009]
[1760272398534,8.17901738,3842.5,3842.4,0.00335009]
[1760272398737,8.17901738,3842.5,3842.4,0.47166009]
[1760272398951,48.97901738,3842.5,3842.4,0.47166009]
[1760272400341,1.4268,3841.6,3841.5,0.3872]
[1760272400541,1.4268,3841.6,3841.5,0.85562]
[1760272400748,7.57174382,3841.6,3841.5,0.85562]
[1760272401047,48.37174382,3841.6,3841.5,0.85562]
[1760272401436,48.37174382,3841.6,3841.5,1.44779168]
[1760272401841,47.34564382,3841.6,3841.5,2.07739168]
[1760272402050,46.94494382,3841.6,3841.5,2.07739168]
[1760272404440,48.37174382,3841.6,3841.5,1.84189168]
[1760272404644,48.37174382,3841.6,3841.5,0.47029168]
[1760272405748,48.37174382,3841.6,3841.5,0.85749168]
[1760272408555,48.84015382,3841.6,3841.5,0.00187168]
[1760272409050,53.84015382,3841.6,3841.5,0.00187168]
[1760272409241,53.84015382,3841.6,3840.7,0.5903]
[1760272409242,0.825,3840.8,3840.7,1.84012]
[1760272409445,1.4268,3840.8,3840.7,1.84012]
[1760272409645,7.78905032,3840.8,3840.7,1.84012]
[1760272409852,47.56295032,3840.8,3840.7,1.84012]
[1760272410258,47.16493152,3840.8,3840.7,1.84291034]
[1760272412457,0.0026812,3840.8,3840.7,10.05071034]
[1760272413964,0.7930812,3840.8,3840.7,1.84291034]
[1760272414154,7.59106777,3840.8,3840.7,1.84291034]
[1760272415158,6.97476777,3840.8,3840.7,1.84291034]
[1760272416759,7.59106777,3840.8,3840.7,1.84291034]
[1760272418460,6.97476777,3840.8,3840.7,1.84291034]
[1760272419155,7.59106777,3840.8,3840.7,1.84291034]
[1760272420563,7.59106777,3840.8,3840.7,0.47131034]
[1760272420765,7.59106777,3840.8,3840.7,1.89221034]
[1760272424763,6.18436777,3840.8,3840.7,1.89221034]
[1760272424964,40.8,3841.5,3841.4,1.82603]
[1760272425163,41.2167,3841.5,3841.4,1.82603]
[1760272425362,47.61005107,3841.5,3841.4,1.82603]
[1760272425866,48.59945107,3841.5,3841.4,1.82603]
[1760272426067,48.60210103,3841.5,3841.4,1.82603]
[1760272429067,1.07643,3841.4,3841.0,0.46848]
[1760272429267,52.44070103,3841.5,3840.9,0.9606]
[1760272429268,1.6508,3841.0,3840.9,0.46849]
[1760272429666,7.97643749,3841.0,3840.9,0.46849]
[1760272431270,0.4685,3840.9,3840.8,0.46851]
[1760272431473,1.8746,3840.9,3840.8,0.46851]
[1760272431673,1.26661,3840.8,3840.7,0.47131034]
[1760272431988,51.68412517,3840.8,3840.7,1.43191034]
[1760272432281,51.68412517,3840.8,3840.7,1.82891034]
[1760272432976,50.69472517,3840.8,3840.7,1.82891034]
[1760272433177,47.07022517,3840.8,3840.7,1.82891034]
[1760272433379,44.11705061,3840.8,3840.7,1.82891034]
[1760272436478,47.87655727,3840.8,3840.7,1.82891034]
[1760272436674,48.48455727,3840.8,3840.7,1.82891034]
[1760272436977,47.07845727,3840.8,3840.7,1.82891034]
[1760272437882,44.11705061,3840.8,3840.7,1.82891034]
[1760272440278,45.52315061,3840.8,3840.7,1.82891034]
[1760272440481,48.47078813,3840.8,3840.7,1.82891034]
[1760272442378,48.47078813,3840.8,3840.7,0.85951034]
[1760272442685,48.47078813,3840.8,3840.7,1.84781034]
[1760272443995,48.47078813,3840.8,3840.7,0.47131034]
[1760272444386,0.5853,3840.7,3840.0,3.1085777]
[1760272444591,1.3702,3840.1,3840.0,2.7682777]
[1760272444791,1.3702,3840.1,3839.7,2.8730777]
[1760272445091,1.3702,3839.8,3839.7,1.43534]
[1760272445291,0.7849,3839.8,3839.7,1.85024]
[1760272445593,4.578,3840.3,3840.2,1.3816]
[1760272445795,4.578,3840.3,3840.0,1.042]
[1760272446094,4.578,3840.3,3840.1,0.46859]
[1760272446095,7.71906945,3840.2,3840.1,0.46859]
[1760272446301,1.3702,3840.1,3840.0,0.3933]
[1760272446486,1.3702,3840.1,3840.0,1.8502]
[1760272446691,7.71906945,3840.1,3840.0,1.8502]
[1760272447591,2.94638685,3840.1,3840.0,2.0842]
[1760272447789,3.34908685,3840.1,3840.0,2.0842]
[1760272447986,4.70802444,3840.1,3840.0,1.8502]
[1760272448292,6.50108042,3840.1,3840.0,2.0842]
[1760272448591,6.50108042,3840.1,3840.0,0.4686]
[1760272448592,7.46858042,3840.1,3840.0,0.4686]
[1760272448801,1.3702,3839.8,3839.7,0.39661206]
[1760272448988,1.3702,3839.8,3839.7,0.47195206]
[1760272449190,7.56942156,3839.8,3839.7,1.43865206]
[1760272449588,48.36942156,3839.8,3839.7,1.43865206]
[1760272449996,47.78412156,3839.8,3839.7,1.85355206]
[1760272450697,48.36942156,3839.8,3839.7,1.85355206]
[1760272450886,47.78412156,3839.8,3839.7,1.85355206]
[1760272451090,47.78412156,3839.8,3839.7,0.47195206]
[1760272451292,1.3702,3839.3,3839.2,1.3816]
[1760272451800,4.1375239,3839.3,3839.2,1.3816]
[1760272452295,7.59708232,3839.3,3839.2,1.85260707]
[1760272452599,7.59708232,3839.3,3839.2,0.86430707]
[1760272453195,7.59708232,3839.3,3839.2,1.85260707]
[1760272454485,7.59708232,3839.3,3839.2,0.47100707]
[1760272454701,0.7849,3838.9,3838.8,1.43545]
[1760272455100,0.7849,3838.9,3838.8,1.85035]
[1760272455101,7.06190216,3838.9,3838.8,1.85035]
[1760272455301,48.44720216,3838.9,3838.8,1.85035]
[1760272455702,48.44720216,3838.9,3838.8,1.85247974]
[1760272456699,51.65500216,3838.9,3838.8,0.00212974]
[1760272457004,52.12374216,3838.9,3838.8,0.00212974]
[1760272457595,57.12374216,3838.9,3838.8,0.00212974]
[1760272457795,51.65500216,3838.9,3838.8,0.86417974]
[1760272457995,51.65500216,3838.9,3838.8,1.85247974]
[1760272458596,51.65500216,3838.9,3838.8,0.47087974]
[1760272458992,51.65500216,3838.9,3838.8,0.86417974]
[1760272459199,51.65500216,3838.9,3838.8,0.47087974]
[1760272459904,52.12374216,3838.9,3838.8,0.47087974]
[1760272460294,56.65500216,3838.9,3838.8,0.47087974]
[1760272461408,57.12374216,3838.9,3838.8,0.47087974]
[1760272461706,57.12374216,3838.9,3838.8,0.00212974]
[1760272462606,57.12374216,3838.9,3838.8,0.47087974]
[1760272463000,57.12374216,3838.9,3838.8,0.00212974]
[1760272463202,52.12374216,3838.9,3838.8,0.00212974]
[1760272463604,57.12374216,3838.9,3838.8,0.00212974]
[1760272465204,52.12374216,3838.9,3838.8,0.47087974]
[1760272465805,51.06970216,3838.9,3838.8,1.85247974]
[1760272466111,51.65500216,3838.9,3838.8,0.86417974]
[1760272467008,51.65500216,3838.9,3838.8,1.85247974]
[1760272467514,51.65500216,3838.9,3838.8,0.47087974]
[1760272468015,51.65500216,3838.9,3838.8,1.43757974]
[1760272468816,2.82115177,3838.9,3838.8,6.85247974]
[1760272469114,4.578,3839.4,3839.3,0.46869]
[1760272469315,45.378,3839.4,3839.3,0.46869]
[1760272469615,48.44163538,3839.4,3839.3,0.46869]
[1760272469816,48.44163538,3839.4,3839.3,1.43539]
[1760272470019,48.44163538,3839.4,3839.3,1.85029]
[1760272471719,48.44163538,3839.4,3839.3,0.86199]
[1760272471919,48.44163538,3839.4,3839.3,0.46869]
[1760272473320,48.44163538,3839.4,3839.3,0.86199]
[1760272473515,48.44163538,3839.4,3839.3,1.42009]
[1760272473915,48.44163538,3839.4,3839.3,1.80369]
[1760272474509,0.46869,3839.3,3839.2,0.4687]
[1760272474815,7.43507929,3839.3,3839.2,0.8522]
[1760272475017,10.87607752,3839.3,3839.2,0.8522]
[1760272476015,10.87607752,3839.3,3839.2,0.4687]
[1760272477119,11.34476752,3839.3,3839.2,0.4687]
[1760272477318,10.87607752,3839.3,3839.2,0.4687]
[1760272477716,11.34476752,3839.3,3839.2,0.4687]
[1760272479716,1.85674,3838.9,3838.8,0.00212974]
[1760272479922,4.5958,3838.9,3838.8,0.47087974]